fUSD/lending_fUSD_20251129
["ID","MTS","AMOUNT","RATE_DAILY","PERIOD"]
[395123056,1764457842399,-500.0,0.00021918,4]
[395123057,1764457842408,-500.0,0.00021918,4]
[395123060,1764457842421,-500.0,0.00021918,4]
[395123062,1764457842435,-500.0,0.00021918,4]
[395123063,1764457842445,-500.0,0.00021918,4]
[395123065,1764457842454,-500.0,0.00021918,4]
[395123067,1764457842463,-500.0,0.00021918,4]
[395123069,1764457842474,-386.63886845,0.00021918,4]
[395123072,1764457842485,-988.64246857,0.00022212,2]
[395123073,1764457842494,-1097.0,0.00022238,2]
[395123076,1764457842502,-500.0,0.00022393,2]
[395123078,1764457842512,-1000.0,0.00022394,2]
[395123079,1764457842521,-166.66,0.00022445,2]
[395123081,1764457842530,-19999.99,0.00022562,2]
[395123084,1764457842539,-200.0,0.00022811,2]
[395123086,1764457842548,-298.26089446,0.00022935,2]
[395123087,1764457842557,-504.85721223,0.00023037,2]
[395123090,1764457842566,-166.66,0.000231,2]
[395123092,1764457842575,-1258.0,0.00023319,2]
[395123094,1764457842584,-1193.0,0.00023319,2]
[395123095,1764457842593,-909.0,0.00023319,2]
[395123098,1764457842601,-562.0,0.00023319,2]
[395123100,1764457842611,-1097.0,0.00023408,2]
[395123101,1764457842620,-309.29654756,0.00024304,2]
[395123103,1764457842629,-1412.0,0.00024377,2]
[395123105,1764457842638,-1412.0,0.00024423,2]
[395123107,1764457842647,-1000.0,0.0002443,2]
[395123110,1764457842656,-1412.0,0.00024432,2]
[395123111,1764457842665,-1412.0,0.00024485,2]
[395123113,1764457842676,-1097.0,0.0002464,2]
[395123115,1764457842685,-1000.0,0.00024658,2]
[395123118,1764457842694,-7515.0,0.00024708,2]
[395123120,1764457842703,-1412.0,0.00024718,2]
[395123122,1764457842714,-700.0,0.0002477,2]
[395123124,1764457842723,-400.0,0.0002477,2]
[395123126,1764457842732,-700.0,0.0002477,2]
[395123127,1764457842741,-400.0,0.0002477,2]
[395123130,1764457842751,-700.0,0.0002477,2]
[395123132,1764457842760,-700.0,0.0002477,2]
[395123133,1764457842769,-1000.0,0.0002477,2]
[395123136,1764457842779,-5314.11827111,0.000248,2]
[395123154,1764457842943,-58696.04963938,0.000248,2]
[395123156,1764457842953,-8249.43224084,0.000248,3]
[395123158,1764457842963,-1412.0,0.00024808,2]
[395123160,1764457842972,-1412.0,0.00024877,2]
[395123162,1764457842981,-988.64246857,0.00024882,2]
[395123164,1764457842991,-1412.0,0.00024961,2]
[395123166,1764457843001,-1412.0,0.0002505,2]
[395123168,1764457843010,-1412.0,0.00025104,2]
[395123170,1764457843020,-1412.0,0.00025141,2]
[395123172,1764457843029,-1412.0,0.000252,2]
[395123174,1764457843038,-421.73232217,0.0002525,2]
[395123176,1764457843052,-1412.0,0.00025346,2]
[395123178,1764457843061,-1412.0,0.00025477,2]
[395123180,1764457843070,-450.73295065,0.00025571,2]
[395123182,1764457843080,-1412.0,0.00025571,2]
[395123184,1764457843089,-320.74051982,0.00025673,2]
[395123186,1764457843098,-500.0,0.00025746,120]
[395123188,1764457843108,-1097.0,0.00025872,2]
[395123190,1764457843117,-1412.0,0.00025873,2]
[395123193,1764457843126,-2000.0,0.00026,2]
[395123196,1764457843135,-1412.0,0.00026296,2]
[395123198,1764457843144,-1253.0,0.00026319,2]
[395123200,1764457843154,-1193.0,0.00026319,2]
[395123202,1764457843163,-909.0,0.00026319,2]
[395123204,1764457843172,-1412.0,0.00026487,2]
[395123206,1764457843182,-150.0,0.000265,14]
[395123209,1764457843192,-1412.0,0.00026539,7]
[395123210,1764457843201,-1412.0,0.00026621,2]
[395123212,1764457843211,-1412.0,0.00026656,2]
[395123213,1764457843220,-633.84,0.00026676,2]
[395123214,1764457843229,-182.95,0.00026679,2]
[395123215,1764457843238,-332.60791905,0.00027042,2]
[395123216,1764457843247,-1097.0,0.00027166,2]
[395123217,1764457843256,-187.84706277,0.00027308,20]
[395123218,1764457843266,-150.0,0.00027369,2]
[395123220,1764457843276,-300.0,0.00027397,2]
[395123222,1764457843285,-158.80960475,0.00027397,5]
[395123224,1764457843295,-154.22,0.000275,7]
[395123226,1764457843306,-988.64246857,0.00027552,2]
[395123228,1764457843317,-479.44,0.00028375,120]
[395123258,1764457843587,-344.91441206,0.00028411,2]
[395123260,1764457843597,-40330.0114446,0.00028503,2]
[395123262,1764457843606,-1097.0,0.00028524,5]
[395123264,1764457843615,-200.0,0.00028758,2]
[395123266,1764457843625,-700.0,0.0002887,2]
[395123268,1764457843643,-400.0,0.0002887,2]
[395123270,1764457843652,-187.84706277,0.00029045,23]
[395123272,1764457843662,-1193.0,0.00029319,2]
[395123274,1764457843671,-909.0,0.00029319,2]
[395123276,1764457843681,-298.35,0.00029408,2]
[395123278,1764457843690,-2000.0,0.000297,2]
[395123280,1764457843700,-357.6762453,0.0002978,2]
[395123283,1764457843709,-151.0,0.00029918,2]
[395123285,1764457843719,-1097.0,0.0002995,5]
[395123287,1764457843728,-177.00720725,0.00030078,2]
[395123289,1764457843737,-34140.0,0.000303,2]
[395123291,1764457843747,-485.88757,0.00030623,120]
[395123293,1764457843756,-5523.0,0.000307,3]
[395123295,1764457843766,-187.84706277,0.00030783,27]
[395123297,1764457843775,-370.91026638,0.00031149,2]
[395123299,1764457843784,-5523.0,0.000312,5]
[395123301,1764457843794,-1097.0,0.00031448,5]
[395123303,1764457843803,-182.95,0.00031783,2]
[395123305,1764457843813,-8998.8419124,0.00032113,2]
[395123307,1764457843823,-151.0,0.0003213,3]
[395123309,1764457843832,-1193.0,0.00032319,2]
[395123311,1764457843841,-909.0,0.00032319,2]
[395123313,1764457843851,-384.63394623,0.00032518,2]
[395123315,1764457843861,-187.84706277,0.0003252,30]
[395123317,1764457843871,-1015.83,0.00032876,120]
[395123319,1764457843881,-330.0,0.00032877,7]
[395123321,1764457843891,-450.0,0.00032877,7]
[395123323,1764457843901,-2007.913037,0.00032918,2]
[395123325,1764457843911,-154.22,0.000331,14]
[395123327,1764457843920,-330.0,0.00033151,7]
[395123330,1764457843930,-633.84,0.00033165,2]
[395123332,1764457843940,-2000.0,0.00033177,120]
[395123334,1764457843950,-2000.0,0.000334,2]
[395123336,1764457843960,-330.0,0.00033425,7]
[395123338,1764457843969,-1015.83,0.00033698,120]
[395123340,1764457843979,-330.0,0.00033699,7]
[395123342,1764457843988,-398.86540225,0.00033887,2]
[395123344,1764457843997,-330.0,0.00033973,7]
[395123346,1764457844006,-300.45530043,0.00034257,30]
[395123348,1764457844016,-151.0,0.00034343,4]
[395123350,1764457844026,-2290.716,0.00034506,39]
[395123352,1764457844037,-165.428,0.00034506,39]
[395123353,1764457844048,-1015.83,0.0003452,120]
[395123356,1764457844059,-200.0,0.00034705,10]
[395123358,1764457844069,-400.0,0.0003477,2]
[395123360,1764457844078,-700.0,0.0003477,2]
[395123362,1764457844088,-1193.0,0.00035319,2]
[395123364,1764457844098,-909.0,0.00035319,2]
[395123366,1764457844108,-1015.83,0.00035342,120]
[395123368,1764457844118,-300.0,0.00035616,2]
[395123370,1764457844129,-300.0,0.00035616,2]
[395123372,1764457844139,-300.0,0.00035616,2]
[395123374,1764457844149,-300.0,0.00035616,2]
[395123376,1764457844158,-300.0,0.00035616,2]
[395123378,1764457844167,-300.0,0.00035616,2]
[395123380,1764457844176,-300.0,0.00035616,2]
[395123382,1764457844186,-300.0,0.00035616,2]
[395123384,1764457844196,-300.8212139,0.00035616,2]
[395123386,1764457844205,-150.0,0.00035616,60]
[395123388,1764457844215,-150.0,0.00035616,60]
[395123390,1764457844224,-500.0,0.00035616,60]
[395123392,1764457844234,-457.0,0.00035616,60]
[395123394,1764457844243,-150.0,0.00035616,2]
[395123396,1764457844252,-500.0,0.00035616,60]
[395123398,1764457844261,-5800.0,0.00035654,2]
[395123400,1764457844272,-3091.0,0.00035717,2]
[395123402,1764457844282,-500.0,0.00035753,60]
[395123404,1764457844292,-457.0,0.00035753,60]
[395123406,1764457844301,-150.0,0.00035753,2]
[395123408,1764457844311,-500.0,0.00035753,60]
[395123410,1764457844321,-500.0,0.0003589,60]
[395123412,1764457844331,-457.0,0.0003589,60]
[395123414,1764457844340,-500.0,0.0003589,60]
[395123416,1764457844349,-199.0,0.0003589,7]
[395123418,1764457844358,-500.0,0.00036027,60]
[395123421,1764457844368,-457.0,0.00036027,60]
[395123423,1764457844378,-500.0,0.00036027,60]
[395123425,1764457844387,-500.0,0.00036164,60]
[395123427,1764457844396,-457.0,0.00036164,60]
[395123429,1764457844406,-500.0,0.00036164,60]
[395123431,1764457844415,-1015.83,0.00036164,120]
[395123433,1764457844424,-500.0,0.00036301,60]
[395123435,1764457844434,-457.0,0.00036301,60]
[395123437,1764457844443,-500.0,0.00036301,60]
[395123439,1764457844453,-500.0,0.00036438,60]
[395123441,1764457844463,-457.0,0.00036438,60]
[395123443,1764457844472,-500.0,0.00036438,60]
[395123445,1764457844482,-199.0,0.00036438,8]
[395123447,1764457844491,-152.17463,0.00036499,30]
[395123449,1764457844501,-151.0,0.00036555,5]
[395123451,1764457844510,-500.0,0.00036575,60]
[395123453,1764457844519,-457.0,0.00036575,60]
[395123455,1764457844528,-500.0,0.00036575,60]
[395123457,1764457844537,-152.17463,0.00036699,30]
[395123459,1764457844546,-500.0,0.00036712,60]
[395123461,1764457844556,-457.0,0.00036712,60]
[395123463,1764457844565,-244.81998674,0.00036712,60]
[395123465,1764457844574,-500.0,0.00036849,60]
[395123467,1764457844583,-457.0,0.00036849,60]
[395123469,1764457844592,-150.0,0.00036888,7]
[395123471,1764457844602,-863.03,0.00036888,5]
[395123474,1764457844611,-507.2487,0.00036888,7]
[395123476,1764457844622,-204.0,0.0003689,30]
[395123478,1764457844631,-881.690804,0.00036893,120]
[395123480,1764457844640,-152.17463,0.00036899,30]
[395123482,1764457844649,-500.0,0.00036986,60]
[395123484,1764457844659,-457.0,0.00036986,60]
[395123486,1764457844668,-199.0,0.00036986,9]
[395123487,1764457844678,-1015.83,0.00036986,120]
[395123489,1764457844688,-1000.0,0.00036999,7]
[395123491,1764457844697,-152.17463,0.00037099,30]
[395123493,1764457844706,-2000.0,0.000371,2]
[395123495,1764457844715,-250.0,0.00037123,60]
[395123497,1764457844725,-457.0,0.00037123,60]
[395123499,1764457844735,-457.0,0.0003726,60]
[395123501,1764457844745,-152.17463,0.00037299,30]
[395123503,1764457844754,-457.0,0.00037397,60]
[395123505,1764457844763,-243.92685643,0.00037444,2]
[395123507,1764457844772,-248.62,0.00037499,2]
[395123509,1764457844782,-152.17463,0.00037499,30]
[395123511,1764457844791,-457.0,0.00037534,60]
[395123513,1764457844801,-199.0,0.00037534,10]
[395123515,1764457844811,-457.0,0.00037671,60]
[395123517,1764457844820,-152.17463,0.00037699,30]
[395123519,1764457844830,-457.0,0.00037808,60]
[395123521,1764457844839,-1015.83,0.00037808,120]
[395123523,1764457844848,-301.12915753,0.00037881,30]
[395123525,1764457844857,-300.0,0.00037881,30]
[395123527,1764457844866,-300.0,0.00037881,30]
[395123529,1764457844876,-365.3682991,0.00037881,30]
[395123531,1764457844885,-300.0,0.00037881,30]
[395123533,1764457844894,-301.28020266,0.00037881,30]
[395123535,1764457844904,-428.92777677,0.00037881,30]
[395123537,1764457844913,-644.49445734,0.00037881,30]
[395123539,1764457844922,-300.0,0.00037881,30]
[395123541,1764457844933,-300.0,0.00037881,30]
[395123543,1764457844943,-300.87443563,0.00037881,30]
[395123545,1764457844953,-300.0,0.00037881,30]
[395123547,1764457844963,-300.0,0.00037881,30]
[395123549,1764457844973,-506.94193861,0.00037881,30]
[395123551,1764457844983,-301.12915753,0.00037881,30]
[395123554,1764457844993,-300.0,0.00037881,30]
[395123556,1764457845003,-300.0,0.00037881,30]
[395123558,1764457845012,-365.3682991,0.00037881,30]
[395123560,1764457845027,-301.28020266,0.00037881,30]
[395123562,1764457845038,-300.87443563,0.00037881,30]
[395123564,1764457845051,-300.0,0.00037881,30]
[395123566,1764457845061,-152.17463,0.00037899,30]
[395123568,1764457845071,-457.0,0.00037945,60]
[395123570,1764457845081,-1000.0,0.00037999,7]
[395123572,1764457845091,-1000.0,0.00037999,7]
[395123574,1764457845100,-1000.0,0.00037999,7]
[395123577,1764457845111,-1000.0,0.00037999,7]
[395123579,1764457845121,-20569.81329144,0.00038,2]
[395123581,1764457845131,-457.0,0.00038082,60]
[395123583,1764457845141,-199.0,0.00038082,11]
[395123585,1764457845152,-152.17463,0.00038099,30]
[395123587,1764457845162,-1000.0,0.00038099,7]
[395123589,1764457845172,-154.22,0.000381,14]
[395123591,1764457845181,-1000.0,0.000382,7]
[395123593,1764457845192,-457.0,0.00038219,60]
[395123595,1764457845202,-152.17463,0.00038299,30]
[395123597,1764457845211,-1193.0,0.00038319,2]
[395123599,1764457845222,-909.0,0.00038319,2]
[395123602,1764457845232,-457.0,0.00038356,60]
[395123604,1764457845242,-397.2235227,0.00038356,2]
[395123606,1764457845252,-181.56307452,0.00038356,5]
[395123608,1764457845262,-150.0,0.00038356,5]
[395123610,1764457845271,-1000.0,0.00038464,7]
[395123612,1764457845281,-457.0,0.00038493,60]
[395123614,1764457845291,-152.17463,0.00038499,30]
[395123616,1764457845300,-150.0,0.0003861,30]
[395123618,1764457845309,-457.0,0.0003863,60]
[395123620,1764457845319,-199.0,0.0003863,12]
[395123622,1764457845329,-1015.83,0.0003863,120]
[395123624,1764457845339,-152.17463,0.00038699,30]
[395123626,1764457845349,-469.0,0.00038767,60]
[395123628,1764457845359,-151.0,0.00038768,6]
[395123630,1764457845368,-152.17463,0.00038899,30]
[395123632,1764457845378,-204.0,0.0003891,30]
[395123634,1764457845389,-1000.0,0.00038999,7]
[395123636,1764457845398,-1000.0,0.00038999,7]
[395123639,1764457845408,-1000.0,0.00038999,7]
[395123641,1764457845418,-1000.0,0.00038999,7]
[395123643,1764457845428,-995.0,0.00039,2]
[395123645,1764457845438,-152.17463,0.00039099,30]
[395123647,1764457845448,-199.0,0.00039178,13]
[395123649,1764457845459,-500.0,0.00039263,120]
[395123651,1764457845468,-500.0,0.00039263,120]
[395123653,1764457845478,-500.0,0.00039263,120]
[395123655,1764457845488,-500.0,0.00039263,120]
[395123657,1764457845497,-502.0,0.00039263,120]
[395123659,1764457845507,-152.17463,0.00039299,30]
[395123661,1764457845516,-500.0,0.00039355,14]
[395123663,1764457845526,-500.0,0.00039355,14]
[395123665,1764457845536,-500.0,0.00039355,14]
[395123667,1764457845546,-1015.83,0.00039452,120]
[395123670,1764457845556,-205.38077461,0.00039542,2]
[395123672,1764457845565,-633.84,0.00039654,2]
[395123674,1764457845574,-1000.0,0.00039666,7]
[395123676,1764457845584,-152.17463,0.00039699,30]
[395123678,1764457845594,-299.387897,0.00039726,14]
[395123680,1764457845603,-250.0,0.00039726,5]
[395123682,1764457845613,-1000.0,0.00039749,7]
[395123684,1764457845622,-2096.23645907,0.00039751,2]
[395123686,1764457845632,-205.38077461,0.00039878,2]
[395123688,1764457845642,-152.17463,0.00039899,30]
[395123690,1764457845652,-154.64552079,0.000399,120]
[395123692,1764457845661,-154.64552079,0.000399,120]
[395123694,1764457845671,-154.64552079,0.000399,120]
[395123696,1764457845682,-154.64552079,0.000399,120]
[395123698,1764457845692,-1000.0,0.00039999,5]
[395123701,1764457845702,-1000.0,0.00039999,7]
[395123702,1764457845711,-1000.0,0.00039999,7]
[395123705,1764457845721,-1000.0,0.00039999,7]
[395123707,1764457845731,-212.91,0.0004,30]
[395123709,1764457845741,-994.0,0.0004,30]
[395123711,1764457845750,-205.38077461,0.00040051,2]
[395123713,1764457845760,-152.17463,0.00040099,30]
[395123715,1764457845769,-1083.0691325,0.00040123,2]
[395123717,1764457845780,-500.0,0.00040177,14]
[395123719,1764457845790,-300.300655,0.00040215,99]
[395123721,1764457845800,-1000.0,0.00040272,7]
[395123723,1764457845810,-1015.83,0.00040273,120]
[395123725,1764457845819,-152.17463,0.00040299,30]
[395123727,1764457845829,-205.38077461,0.00040431,2]
[395123730,1764457845839,-152.17463,0.00040499,30]
[395123732,1764457845849,-241.665389,0.00040505,2]
[395123734,1764457845858,-500.0,0.00040547,120]
[395123736,1764457845869,-500.0,0.00040547,120]
[395123738,1764457845878,-500.0,0.00040547,120]
[395123740,1764457845888,-526.00549701,0.00040547,120]
[395123742,1764457845898,-156.73,0.00040578,2]
[395123744,1764457845908,-1000.0,0.00040587,6]
[395123746,1764457845918,-200.0,0.00040651,20]
[395123748,1764457845928,-1444.0,0.00040658,120]
[395123750,1764457845939,-152.17463,0.00040699,30]
[395123768,1764457846098,-1000.0,0.00040699,7]
[395123771,1764457846107,-205.38077464,0.00040758,2]
[395123773,1764457846117,-2000.0,0.00040794,3]
[395123774,1764457846129,-2000.0,0.000408,2]
[395123775,1764457846138,-959.32,0.00040818,2]
[395123776,1764457846147,-1000.0,0.0004082,7]
[395123777,1764457846158,-1000.0,0.00040879,7]
[395123778,1764457846167,-152.17463,0.00040899,30]
[395123779,1764457846177,-1000.0,0.00040899,7]
[395123780,1764457846188,-1000.0,0.000409,2]
[395123781,1764457846198,-4426.9698417,0.000409,28]
[395123782,1764457846208,-156.0,0.000409,28]
[395123783,1764457846218,-567.0,0.000409,18]
[395123784,1764457846228,-154.64552079,0.000409,120]
[395123785,1764457846238,-371.17557835,0.000409,2]
[395123786,1764457846248,-394.04480584,0.000409,2]
[395123788,1764457846257,-204.0,0.0004093,30]
[395123790,1764457846267,-247.0,0.00040945,120]
[395123792,1764457846277,-700.0,0.0004097,3]
[395123794,1764457846286,-400.0,0.0004097,3]
[395123796,1764457846296,-1000.0,0.00040976,7]
[395123798,1764457846305,-1000.0,0.00040979,2]
[395123800,1764457846315,-151.0,0.0004098,7]
[395123802,1764457846324,-353.48093,0.0004098,7]
[395123804,1764457846334,-1000.0,0.00040989,4]
[395123806,1764457846343,-1000.0,0.00040989,3]
[395123808,1764457846353,-1000.0,0.00040989,7]
[395123810,1764457846363,-1000.0,0.00040989,7]
[395123812,1764457846372,-1000.0,0.00040998,7]
[395123814,1764457846383,-500.0,0.00040999,14]
[395123816,1764457846392,-500.0,0.00040999,14]
[395123818,1764457846402,-500.0,0.00040999,14]
[395123820,1764457846411,-151.0,0.00040999,14]
[395123822,1764457846420,-151.0,0.00040999,14]
[395123824,1764457846430,-151.0,0.00040999,14]
[395123826,1764457846440,-151.0,0.00040999,14]
[395123828,1764457846449,-151.0,0.00040999,14]
[395123830,1764457846459,-151.0,0.00040999,14]
[395123832,1764457846468,-151.0,0.00040999,14]
[395123835,1764457846478,-831.0,0.00040999,14]
[395123836,1764457846487,-151.0,0.00040999,14]
[395123838,1764457846496,-151.0,0.00040999,14]
[395123840,1764457846506,-151.0,0.00040999,14]
[395123843,1764457846515,-151.0,0.00040999,14]
[395123845,1764457846524,-151.0,0.00040999,14]
[395123847,1764457846533,-151.0,0.00040999,14]
[395123849,1764457846543,-151.0,0.00040999,14]
[395123850,1764457846552,-151.0,0.00040999,14]
[395123853,1764457846562,-151.0,0.00040999,14]
[395123854,1764457846571,-151.0,0.00040999,14]
[395123857,1764457846580,-209.6337216,0.00040999,14]
[395123858,1764457846589,-257.91778498,0.00040999,30]
[395123861,1764457846598,-1000.0,0.00040999,7]
[395123862,1764457846607,-1000.0,0.00040999,7]
[395123864,1764457846617,-300.0,0.00040999,10]
[395123867,1764457846626,-40203.30374282,0.00041,31]
[395123869,1764457846635,-50000.0,0.00041,51]
[395123871,1764457846644,-50000.0,0.00041,61]
[395123873,1764457846653,-50000.0,0.00041,21]
[395123875,1764457846663,-50000.0,0.00041,26]
[395123877,1764457846672,-50000.0,0.00041,36]
[395123878,1764457846681,-760.41064231,0.00041,31]
[395123881,1764457846691,-57978.17309188,0.00041,21]
[395123883,1764457846700,-7158372.57546078,0.00041,2]
[395124065,1764457848408,-1.7e-07,0.00030221,2]
[395124185,1764457849604,-560.6094814,0.000159,2]
[395124187,1764457849613,-259.41747261,0.00020319,2]
[395124190,1764457849624,-2052.38503337,0.00020319,2]
[395124192,1764457849635,-468.53617814,0.00020319,2]
[395124194,1764457849646,-478.87583448,0.00020319,2]
[395124924,1764457973669,-242.434925,0.00014475,2]
[395124925,1764457973692,-300.0,0.00014548,2]
[395124926,1764457973719,-398.50639112,0.00014549,2]
[395124927,1764457977517,-101.49360888,0.00014549,2]
[395124928,1764457977543,-198.50639112,0.00014549,2]
[395124929,1764457979482,-157.51062533,0.00014549,2]
[395124930,1764457981548,-143.98298355,0.00014549,2]
[395124931,1764457981573,-205.78294721,0.00014549,2]
[395124979,1764458122950,184.35020723,0.0001445,2]
[395124988,1764458163998,156.61,0.00019178,30]
[395125001,1764458184871,2160.43082601,0.0001445,2]
[395125004,1764458188448,4007.52386145,0.0001445,2]
[395125005,1764458195549,159.46,0.00013029,2]
[395125051,1764458494121,2400.065,0.00014259,2]
[395125053,1764458494212,165.429,0.00014259,2]
[395125060,1764458571222,922.75110531,0.0001445,2]
[395125061,1764458571249,1021.63663809,0.0001445,2]
[395125064,1764458613712,3606.77147535,0.0001445,2]
[395125080,1764458871177,-1040.24545121,0.00014549,5]
[395125081,1764458871206,-1040.24545121,0.00014549,5]
[395125083,1764458882624,-1056.89949334,0.00014549,5]
[395125084,1764458893512,1111.01588049,0.00014549,5]
[395125085,1764458899188,195.0,7.888e-05,2]
[395125086,1764458908315,9751.59372375,0.00015,4]
[395125087,1764458912104,2263.80500873,0.0001421,7]
[395125088,1764458912855,3020.8074,0.0001445,2]
[395125089,1764458919098,1000.0,0.0001445,2]
[395125126,1764458983065,1155.79448656,0.0001445,2]
[395125127,1764458983089,388.73991344,0.0001445,2]
[395125152,1764459018818,-157.53759931,0.00014521,2]
[395125154,1764459021030,-286.48255414,0.00014521,2]
[395125155,1764459023722,-195.0,0.00014521,2]
[395125156,1764459026385,-262.44,0.00014521,2]
[395125157,1764459028960,-166.66,0.00014521,2]
[395125158,1764459030493,-166.66,0.00014521,2]
[395125165,1764459031580,-465.99544655,0.00014521,2]
[395125166,1764459031590,-300.0,0.00014548,2]
[395125167,1764459031600,-300.0,0.00014548,2]
[395125168,1764459031610,-1200.0,0.00014548,2]
[395125169,1764459031620,-150.0,0.00014548,2]
[395125170,1764459031631,-195.0,0.00014548,2]
[395125171,1764459031642,-208.0,0.00014548,2]
[395125172,1764459031654,-300.73037782,0.00014548,2]
[395125173,1764459031664,-300.0,0.00014548,2]
[395125174,1764459031675,-195.0,0.00014548,2]
[395125175,1764459031684,-321.21340641,0.00014548,2]
[395125176,1764459031694,-195.0,0.00014549,2]
[395125177,1764459031705,-425.83279292,0.00014549,2]
[395125178,1764459031715,-359.81952588,0.00014549,2]
[395125179,1764459031725,-517.88479853,0.00014549,2]
[395125181,1764459031734,-500.0,0.00014549,2]
[395125183,1764459031744,-500.0,0.00014549,2]
[395125185,1764459031754,-500.0,0.00014549,2]
[395125186,1764459031763,-500.0,0.00014549,2]
[395125187,1764459031773,-500.0,0.00014549,2]
[395125188,1764459031782,-500.0,0.00014549,2]
[395125189,1764459031792,-500.0,0.00014549,2]
[395125190,1764459031801,-500.0,0.00014549,2]
[395125191,1764459031810,-500.0,0.00014549,2]
[395125193,1764459031819,-500.0,0.00014549,2]
[395125195,1764459031829,-33.91382236,0.00014549,2]
[395125198,1764459031841,-466.08617764,0.00014549,2]
[395125200,1764459031850,-176.46973381,0.00014549,2]
[395125207,1764459031887,-323.53026619,0.00014549,2]
[395125209,1764459031897,-500.0,0.00014549,2]
[395125211,1764459031908,-500.0,0.00014549,2]
[395125213,1764459031917,-500.0,0.00014549,2]
[395125215,1764459031926,-500.0,0.00014549,2]
[395125217,1764459031935,-500.0,0.00014549,2]
[395125219,1764459031947,-500.0,0.00014549,2]
[395125221,1764459031957,-500.0,0.00014549,2]
[395125223,1764459031967,-500.0,0.00014549,2]
[395125225,1764459031976,-500.0,0.00014549,2]
[395125227,1764459031987,-500.0,0.00014549,2]
[395125229,1764459031996,-500.0,0.00014549,2]
[395125231,1764459032005,-500.0,0.00014549,2]
[395125233,1764459032014,-500.0,0.00014549,2]
[395125235,1764459032026,-500.0,0.00014549,2]
[395125237,1764459032035,-500.0,0.00014549,2]
[395125239,1764459032044,-500.0,0.00014549,2]
[395125241,1764459032056,-311.40714846,0.00014549,2]
[395125243,1764459032065,-500.0,0.00014549,2]
[395125245,1764459032076,-500.0,0.00014549,2]
[395125247,1764459032087,-500.0,0.00014549,2]
[395125249,1764459032096,-500.0,0.00014549,2]
[395125251,1764459032105,-500.0,0.00014549,2]
[395125253,1764459032114,-500.0,0.00014549,2]
[395125255,1764459032124,-500.0,0.00014549,2]
[395125257,1764459032133,-500.0,0.00014549,2]
[395125259,1764459032143,-500.0,0.00014549,2]
[395125261,1764459032153,-500.0,0.00014549,2]
[395125263,1764459032162,-500.0,0.00014549,2]
[395125265,1764459032171,-500.0,0.00014549,2]
[395125267,1764459032181,-500.0,0.00014549,2]
[395125269,1764459032190,-500.0,0.00014549,2]
[395125271,1764459032199,-168.61747997,0.00014549,2]
[395125273,1764459032208,-500.0,0.00014549,2]
[395125275,1764459032220,-500.0,0.00014549,2]
[395125277,1764459032230,-333.88541183,0.00014549,2]
[395125279,1764459032239,-351.76946733,0.00014549,2]
[395125281,1764459032248,-500.0,0.00014549,2]
[395125283,1764459032257,-500.0,0.00014549,2]
[395125285,1764459032266,-500.0,0.00014549,2]
[395125287,1764459032276,-500.0,0.00014549,2]
[395125289,1764459032285,-500.0,0.00014549,2]
[395125291,1764459032294,-500.0,0.00014549,2]
[395125293,1764459032304,-500.0,0.00014549,2]